{"text_format":"1","workbook":"xlsx","n_sheets":4,"sheets":["Титульный","Кроссворд","Расчетный","Итоговый"],"not_rendered":{"charts":0,"images":4,"macros":1,"external_links":0,"defined_names":0,"comments":1,"pivot_tables":0},"unopened":[],"bounds":{"document_bytes":16777216,"sheet_cells":100000,"rows_first":2000,"rows_last":500,"rows_between":2000,"halvings":0,"cell_chars":16384,"cell_head_chars":4096},"cells_cut":0,"cells_raw":0,"read":"whole","date_system":"1900"}

{"sheet":"Титульный","index":0,"n_rows":17,"n_cols":5,"rows_kept":17,"cut":false,"hidden":false,"merged":[[13,4,14,7],[13,9,14,13],[16,4,17,7],[16,9,17,13]]}
[]
[]
[]
[]
[]
[]
[]
[]
[]
[]
[]
[]
[]
[null,null,null,null,"Фамилия, имя"]
[]
[]
[null,null,null,null,"Класс"]

{"sheet":"Кроссворд","index":1,"n_rows":0,"n_cols":0,"rows_kept":0,"cut":false,"hidden":false,"merged":[]}

{"sheet":"Расчетный","index":2,"n_rows":14,"n_cols":4,"rows_kept":14,"cut":false,"hidden":true,"merged":[]}
["№","Ответы проверяемого","Правильные ответы","Баллы"]
[1,{"$f":"CONCATENATE(Кроссворд!Q15,Кроссворд!R15,Кроссворд!S15,Кроссворд!T15)","v":""},"лист",{"$f":"IF(B2=C2,1,0)","v":0}]
[2,{"$f":"CONCATENATE(Кроссворд!V1,Кроссворд!V2,Кроссворд!V3,Кроссворд!V4,Кроссворд!V5,Кроссворд!V6,Кроссворд!V7,Кроссворд!V8,Кроссворд!V9,Кроссворд!V10)","v":""},"сортировка",{"$f":"IF(B3=C3,1,0)","v":0}]
[3,{"$f":"CONCATENATE(Кроссворд!T10,Кроссворд!U10,Кроссворд!V10,Кроссворд!W10,Кроссворд!X10,Кроссворд!Y10)","v":""},"график",0]
[4,{"$f":"CONCATENATE(Кроссворд!T12,Кроссворд!T13,Кроссворд!T14,Кроссворд!T15,Кроссворд!T16,Кроссворд!T17,Кроссворд!T18,Кроссворд!T19,Кроссворд!T20,Кроссворд!T21,Кроссворд!T22)","v":""},"гистограмма",0]
[5,{"$f":"CONCATENATE(Кроссворд!I19,Кроссворд!J19,Кроссворд!K19,Кроссворд!L19,Кроссворд!M19,Кроссворд!N19,Кроссворд!O19,Кроссворд!P19,Кроссворд!Q19,Кроссворд!R19,Кроссворд!S19,Кроссворд!T19,Кроссворд!U19)","v":""},"относительная",0]
[6,{"$f":"CONCATENATE(Кроссворд!X9,Кроссворд!X10,Кроссворд!X11,Кроссворд!X12,Кроссворд!X13,Кроссворд!X14,Кроссворд!X15,Кроссворд!X16,Кроссворд!X17)","v":""},"диаграмма",0]
[7,{"$f":"CONCATENATE(Кроссворд!P22,Кроссворд!Q22,Кроссворд!R22,Кроссворд!S22,Кроссворд!T22)","v":""},"книга",0]
[8,{"$f":"CONCATENATE(Кроссворд!AA9,Кроссворд!AA10,Кроссворд!AA11,Кроссворд!AA12,Кроссворд!AA13,Кроссворд!AA14)","v":""},"ячейка",{"$f":"IF(B9=C9,1,0)","v":0}]
[9,{"$f":"CONCATENATE(Кроссворд!T14,Кроссворд!U14,Кроссворд!V14,Кроссворд!W14,Кроссворд!X14,Кроссворд!Y14,Кроссворд!Z14,Кроссворд!AA14,Кроссворд!AB14)","v":""},"смешанная",0]
[10,{"$f":"CONCATENATE(Кроссворд!X17,Кроссворд!Y17,Кроссворд!Z17,Кроссворд!AA17,Кроссворд!AB17,Кроссворд!AC17,Кроссворд!AD17,Кроссворд!AE17,Кроссворд!AF17,Кроссворд!AG17)","v":""},"абсолютная",0]
[null,null,"Итого:",{"$f":"SUM(D2:D11)","v":0}]
[]
[null,null,"Ваша оценка",{"$f":"IF(D12>=10,5,IF(D12>=8,4,IF(D12>=6,3,2)))","v":2}]

{"sheet":"Итоговый","index":3,"n_rows":8,"n_cols":8,"rows_kept":8,"cut":false,"hidden":false,"merged":[[4,7,6,7],[4,5,6,5],[4,1,6,4],[7,1,7,4]]}
[]
[]
[]
[null,null,null,null,null,null,null,"Оценка"]
[null,{"$f":"Титульный!J14","v":0},null,null,null,{"$f":"Титульный!J17","v":0},null,{"$f":"Расчетный!D14","v":2}]
[]
[]
[null,"фамилия ученика",null,null,null,"класс"]